[Event "1st Sales Oliveira Masters 2022"]
[Site "Sales Oliveira"]
[Date "2022.06.09"]
[Round "3.3"]
[White "Rodi, Luis Ernesto"]
[Black "Delgado Ramirez, Neuris"]
[Result "0-1"]
[ECO "B23"]
[WhiteElo "2351"]
[BlackElo "2603"]
[Annotator "TA"]
[PlyCount "86"]
[EventDate "2022.05.30"]
[EventType "swiss"]
[EventCountry "BRA"]
[SourceTitle "playchess.com"]
[Source "ChessBase"]
[SourceQuality "1"]
[TimeControl "40/5400+30:1800+30"]

{[%evp 9,86,6,12,0,14,2,0,10,-8,-33,29,25,30,28,61,10,33,0,23,0,14,0,11,-28,-21,-31,-22,-34,-35,-45,-10,-35,-37,-37,-30,-48,-65,-71,-74,-66,-64,-125,-106,-118,-119,-108,-123,-133,-108,-315,-310,-354,-347,-338,-302,-281,-278,-265,-227,-391,-383,-481,-446,-616,-628,-611,-621,-602,-590,-697,-708,-1032,-1031,-1125,-765,-2372,-1637,-29993,-29994]} 1. e4 {[%emt 0:00:04]} c5 {[%emt 0:00:04]} 2. Nc3 {[%emt 0:00:06]} Nc6 {[%emt 0:00:04]} 3. Bb5 {[%emt 0:00:07]} Nd4 {[%emt 0:03:59]} 4. Nf3 {[%emt 0:00:10]} a6 {[%emt 0:00:12]} 5. Bd3 {[%emt 0:00:07]} g6 {[%emt 0:00:22]} 6. O-O {[%emt 0:00:13] B23: Closed Sicilian: Lines without g3.} Bg7 {[%emt 0:00:07]} 7. Re1 {[%emt 0:00:05]} Nf6 $5 {[%emt 0:00:18][%mdl 4] An interesting side line.} 8. e5 {[%emt 0:02:05] The position is equal.} Nh5 {[%emt 0:01:56]} 9. b4 {[%emt 0:04:17] [#]} d6 $146 {[%emt 0:33:05]} (9... Nxf3+ $1 $15 10. Qxf3 cxb4) ({Predecessor:} 9... Nxf3+ 10. Qxf3 cxb4 11. Nd5 e6 12. Nf4 Nxf4 13. Qxf4 d6 14. Qxb4 Bxe5 15. Rb1 O-O {0-1 (74) Kadric,D (2564)-Yu,Y (2705) Krasnaya Polyana 2021}) 10. exd6 $11 {[%emt 0:07:32]} Qxd6 {[%emt 0:02:03]} 11. bxc5 {[%emt 0:04:43]} Qxc5 {[%emt 0:00:42]} 12. Ne4 {[%emt 0:03:13]} (12. a4 $14 Be6 13. Ba3) 12... Qc7 {[%emt 0:04:01] [#] aiming for ...Nxf3+.} 13. c3 {[%emt 0:04:39]} Nc6 {[%emt 0:05:58][%cal Bd4c6,Bc6a5,Ba5c4][%mdl 32]} 14. Bf1 {[%emt 0:03:17]} O-O {[%emt 0:00:31]} 15. d4 {[%emt 0:00:10]} Rd8 {[%emt 0:01:20]} 16. Qb3 {[%emt 0:11:42]} Be6 {[%emt 0:01:22]} 17. Qb1 {[%emt 0:05:12]} Bd5 {[%emt 0:07:11]} 18. Bb2 {[%emt 0:03:48]} Na5 {[%emt 0:00:21] Against c4} 19. Ned2 {[%emt 0:00:44]} Nf4 {[%emt 0:03:54]} 20. g3 {[%emt 0:07:26]} Bxf3 {[%emt 0:01:05]} 21. Nxf3 {[%emt 0:00:11]} Nd5 {[%emt 0:00:03]} 22. Qd3 {[%emt 0:03:14]} Rac8 {[%emt 0:32:52]} 23. Rac1 {[%emt 0:01:28]} Nc4 {[%emt 0:00:00] Pair of Knights!} 24. Ba1 {[%emt 0:37:57]} b5 {[%emt 0:00:00][%cal Bb7b5,Bb5c4][%mdl 32]} 25. Nd2 {[%emt 0:00:00]} (25. h4 $15) 25... Bh6 $17 {0x0.00176181a8eadp-1022s more active pieces.} 26. f4 e5 {[%emt 0:00:00][%cal Be7e5,Be5f4,Bf4g3,Bg3h2][%mdl 32]} 27. Nxc4 {[%emt 0:00:00]} bxc4 {[%emt 0:00:00]} 28. Qf3 {[%emt 0:00:00]} exf4 {[%emt 0:00:00]} 29. Re5 $2 {[%emt 0:00:00] [#] Loses the game.} (29. Rc2 $17 {is a better defense.}) 29... fxg3 $1 $19 {[%emt 0:00:00]} 30. Rce1 {[%emt 0:00:00]} (30. Rd1 gxh2+) 30... gxh2+ {[%emt 0:00:00]} 31. Kh1 {[%emt 0:00:00]} Bg7 {[%emt 0:00:00]} 32. R5e2 {[%emt 0:00:00]} ({Of course not} 32. Rxd5 Rxd5 33. Bh3 (33. Qxd5 $2 {loses.} Qg3 $19) 33... Rcd8 $19) 32... Qd6 {[%emt 0:00:00]} 33. Bb2 {[%emt 0:00:00]} Nf4 {[%emt 0:00:00]} 34. Re4 {[%emt 0:00:00]} (34. Rf2 Nh5 35. Bc1) 34... Nh5 {[%emt 0:00:00]} 35. Rg4 {[%emt 0:00:00] Prevents Ng3+.} Re8 {[%emt 0:00:00]} 36. Re2 {[%emt 0:00:00]} Rxe2 {[%emt 0:00:00]} 37. Bxe2 {[%emt 0:00:00]} Rb8 {[%emt 0:00:00]} 38. Bxc4 {[%emt 0:00:00]} Qc7 {[%emt 0:00:00]} 39. Bb3 {[%emt 0:00:00]} Re8 {[%emt 0:00:00]} 40. Qf2 {[%emt 0:00:00] Inhibits Re1+.} Bh6 {[%emt 0:00:00] White must now prevent ...Bf4.} 41. Ba3 {[%emt 0:11:18]} Be3 {[%emt 0:11:05]} 42. Qf1 {[%emt 0:00:30]} Bf4 {[%emt 0:00:30] ( -> ...Qc6+)} 43. Ba4 {[%emt 0:00:30] Against Qc6+} Qb7+ {[%emt 0:00:30] Weighted Error Value: White=0.56/Black=0.18 (very precise)} 0-1

[Event "1st Sales Oliveira Masters 2022"]
[Site "Sales Oliveira"]
[Date "2022.06.09"]
[Round "3.4"]
[White "Diamant, Andre"]
[Black "Labussiere, Victor"]
[Result "1/2-1/2"]
[ECO "D31"]
[WhiteElo "2539"]
[BlackElo "2349"]
[Annotator "TA"]
[PlyCount "142"]
[EventDate "2022.05.30"]
[EventType "swiss"]
[EventCountry "BRA"]
[SourceTitle "playchess.com"]
[Source "ChessBase"]
[SourceQuality "1"]
[TimeControl "40/5400+30:1800+30"]

{[%evp 9,142,14,14,18,33,32,29,33,32,16,28,45,52,41,42,34,48,43,50,48,134,57,47,-9,-23,-35,-21,-40,0,0,0,0,25,15,32,4,4,0,11,0,0,0,-10,-152,0,0,0,0,11,0,0,-7,97,107,108,101,104,89,192,192,172,161,147,144,156,0,0,-20,0,0,0,-14,-14,-17,-22,-27,-10,-79,-77,-73,-52,-57,-53,-77,-77,-102,-102,-418,-84,-93,-91,-95,-57,-68,-57,-57,-13,-13,-10,-10,0,0,0,0,0,0,0,-11,-11,-11,-11,-11,0,0,0,0,0,0,0,0,0,0,0,0,0,0,0,0,0,0,0,0,0,0,0]} 1. d4 {[%emt 0:00:55]} d5 {[%emt 0:01:56]} 2. c4 {[%emt 0:00:45]} e6 {[%emt 0:00:03]} 3. Nc3 {[%emt 0:00:35]} a6 {[%emt 0:00:05]} 4. cxd5 {[%emt 0:01:27]} exd5 {[%emt 0:00:20]} 5. Bf4 {[%emt 0:00:42]} Nf6 {[%emt 0:00:13]} 6. e3 {[%emt 0:00:08] D31: Queen's Gambit Declined: Semi-Slav without ...Nf6 (+ Marshall Gambit and Noteboom) and Exchange Variation lines without ...Nf6.} c5 {[%emt 0:00:03]} 7. Nge2 {[%emt 0:03:32]} Nc6 {[%emt 0:12:36]} 8. g3 {[%emt 0:05:33] White has an edge.} cxd4 {[%emt 0:34:25]} 9. Nxd4 {[%emt 0:03:23] [#]} Qb6 $146 {[%emt 0:03:31]} ({Predecessor:} 9... Bg4 10. Qd3 Nxd4 11. Qxd4 Bf3 12. Rg1 Rc8 13. Be2 Bxe2 14. Kxe2 Be7 15. Rad1 O-O {1-0 (50) Kantor,G (2533)-Kozusek,D (2323) Riga 2021}) 10. Qb3 {[%emt 0:06:26]} Bb4 {[%emt 0:04:25]} 11. Bg2 {[%emt 0:13:36]} Nxd4 {[%emt 0:06:43]} 12. exd4 {[%emt 0:00:41]} Bxc3+ {[%emt 0:04:08]} 13. bxc3 {[%emt 0:01:38]} Qe6+ {[%emt 0:03:21]} 14. Be5 {[%emt 0:01:40] This bishop pair is nice.} Ne4 {[%emt 0:06:55]} ({Better is} 14... O-O $14) 15. f3 {[%emt 0:08:14]} (15. Bxe4 $16 dxe4 16. Bxg7) 15... Nc5 $1 $14 {[%emt 0:01:44]} 16. Qa3 {[%emt 0:12:03]} (16. Qc2 $14 f6 17. O-O-O fxe5 18. dxc5) 16... Nd3+ $11 {[%emt 0:00:33]} 17. Kd2 {[%emt 0:01:55]} Nxe5 {[%emt 0:00:09]} 18. dxe5 {[%emt 0:00:02]} Bd7 {[%emt 0:00:27]} (18... Qb6 {is more complex.} 19. Rae1 Bd7 20. Qb4 Bb5) 19. f4 {[%emt 0:01:21]} Bc6 {[%emt 0:01:11]} 20. Rab1 {[%emt 0:08:16]} Rd8 {[%emt 0:00:49]} 21. Qc5 {[%emt 0:03:52]} h5 {[%emt 0:04:43]} 22. Rhf1 {[%emt 0:07:58]} h4 {[%emt 0:01:05]} 23. f5 {[%emt 0:01:17]} Qh6+ {[%emt 0:00:10]} 24. Rf4 {[%emt 0:01:23]} hxg3 {[%emt 0:00:59]} 25. hxg3 {[%emt 0:00:18] Threatens to win with Rh1.} Qg5 $1 {[%emt 0:01:05]} 26. f6 {[%emt 0:03:08]} (26. Qf2 $11) 26... Rd7 $2 {[%emt 0:00:48]} ({Black should play} 26... gxf6 $17 27. exf6 Kd7) 27. fxg7 $40 {[%emt 0:10:41][%mdl 128] White mounts an attack.} Qxg7 {[%emt 0:00:23]} 28. Rbf1 {[%emt 0:00:33]} Qg5 {[%emt 0:05:01]} 29. R1f2 {[%emt 0:01:28]} Kd8 {[%emt 0:05:27]} 30. Qe3 {[%emt 0:00:57]} Rg8 {[%emt 0:01:38]} (30... Re7 $11) 31. Bh3 $16 {[%emt 0:00:43]} Re7 {[%emt 0:00:28]} 32. Qb6+ $1 {[%emt 0:00:44]} Ke8 {[%emt 0:00:24]} 33. Qa7 {[%emt 0:00:30][%cal Ra7b8] White is much more active.} Rxe5 {[%emt 0:00:21]} 34. Qb8+ {[%emt 0:00:25]} Ke7 {[%emt 0:00:02]} 35. Qc7+ {[%emt 0:00:14]} Ke8 {[%emt 0:00:11][%cal Be7e8,Be8d8,Bd8c7][%mdl 32]} 36. Kc2 {[%emt 0:00:31] White wants to mate with Qb8+. The board is on fire.} Re1 {[%emt 0:01:10] [#]} 37. Qxf7+ {[%emt 0:00:54]} (37. Bc8 $1 $16) 37... Kd8 $11 {[%emt 0:00:07]} 38. Kb2 {[%emt 0:00:29]} Qg6 {[%emt 0:00:52]} 39. Qxg6 {[%emt 0:00:32]} Rxg6 {[%emt 0:00:04]} 40. R4f3 {[%emt 0:00:27]} Rg1 {[%emt 0:00:58]} 41. g4 {[%emt 0:30:30]} Kc7 {[%emt 0:30:16]} 42. Rf7+ {[%emt 0:00:25]} Kd6 {[%emt 0:00:27]} 43. R7f6+ {[%emt 0:00:29]} (43. Rd2 $11 {remains equal.}) 43... Rxf6 $17 {[%emt 0:00:04]} 44. Rxf6+ {[%emt 0:00:05][%mdl 4096] Endgame KRB-KRB} Ke5 {[%emt 0:01:00]} 45. Rf5+ {[%emt 0:00:55]} Ke4 {[%emt 0:00:19]} 46. Rf1 {[%emt 0:00:33]} Rg3 {[%emt 0:00:38]} 47. Rh1 {[%emt 0:00:24][%cal Og4g5]} Kf4 {[%emt 0:00:43][%cal Od5d4]} 48. Rh2 $2 {[%emt 0:00:41][%mdl 8192] [#]} (48. Rf1+ $17 {was the crucial defense.} Ke3 49. Re1+ Kf4 50. Rf1+ Ke4 51. Re1+ Kf3 52. Rf1+ Ke4) 48... Bb5 $2 {[%emt 0:00:35]} (48... Rf3 $1 $19 {White must now prevent ...Kg3.} 49. g5 Kg3 50. Rg2+ (50. Rh1 $2 d4 $19) 50... Kxh3) 49. Bg2 {[%emt 0:00:30]} Bc4 {[%emt 0:00:49]} ({Don't play} 49... Kxg4 50. Bxd5 Kf4 51. Bxb7 $16) 50. g5 {[%emt 0:00:26]} Rxg5 {[%emt 0:00:29] ...Kg3 is the strong threat.} 51. Bf1 $1 {[%emt 0:00:29][%mdl 64] Decoy} Bxf1 $15 {[%emt 0:00:32] KRB-KR} 52. Rf2+ {[%emt 0:00:02]} Ke3 {[%emt 0:00:12]} 53. Rxf1 $11 {[%emt 0:00:03] KR-KR. The position is equal.} Rg6 {[%emt 0:00:38]} 54. Kc2 {[%emt 0:00:35]} Rb6 {[%emt 0:00:43]} 55. Re1+ {[%emt 0:00:10]} Kf4 {[%emt 0:00:03]} 56. Re7 {[%emt 0:00:06]} Kf5 {[%emt 0:00:06]} 57. Kd3 {[%emt 0:01:15]} Kf6 {[%emt 0:00:04]} 58. Rh7 {[%emt 0:00:27] Intending Rh6+ and mate.} Rb2 {[%emt 0:00:35]} 59. Kd4 {[%emt 0:00:46]} Ke6 {[%emt 0:00:33]} 60. a4 {[%emt 0:00:37]} Kd6 {[%emt 0:01:17]} 61. Rh6+ {[%emt 0:00:22]} Kc7 {[%emt 0:00:07]} 62. Kxd5 {[%emt 0:00:14]} Ra2 {[%emt 0:00:10]} 63. Kc5 $1 {[%emt 0:00:53]} b6+ {[%emt 0:00:50]} 64. Rxb6 {[%emt 0:00:21]} Rxa4 {[%emt 0:00:13] ( -> ...Ra5+)} 65. Rh6 {[%emt 0:00:08]} Ra5+ {[%emt 0:00:04]} 66. Kd4 {[%emt 0:00:24]} Kb7 {[%emt 0:00:09]} 67. c4 {[%emt 0:00:24]} Rg5 {[%emt 0:00:11]} 68. c5 {[%emt 0:00:06]} Kc7 {[%emt 0:01:21]} 69. Rxa6 {[%emt 0:00:19]} Rg4+ {[%emt 0:00:15]} 70. Kd5 {[%emt 0:00:07]} Rg5+ {[%emt 0:00:10]} 71. Kc4 {[%emt 0:00:12]} Rg1 {[%emt 0:00:06] Quite a comeback for White.  Weighted Error Value: White=0.30/Black=0.26 (precise)} 1/2-1/2

[Event "1st Sales Oliveira Masters 2022"]
[Site "Sales Oliveira"]
[Date "2022.06.09"]
[Round "3.5"]
[White "Supi, Luis Paulo"]
[Black "Coro, Lucas"]
[Result "1-0"]
[ECO "B31"]
[WhiteElo "2590"]
[BlackElo "2398"]
[Annotator "TA"]
[PlyCount "73"]
[EventDate "2022.05.30"]
[EventType "swiss"]
[EventCountry "BRA"]
[SourceTitle "playchess.com"]
[Source "ChessBase"]
[SourceQuality "1"]
[TimeControl "40/5400+30:1800+30"]

{[%evp 11,73,20,43,43,54,64,49,33,55,42,49,49,43,23,54,42,45,47,59,16,72,62,98,100,129,93,137,129,137,111,103,102,197,158,202,190,250,256,247,250,270,244,237,241,360,353,356,376,452,377,371,364,512,509,499,474,461,459,444,444,444,424,415,404]} 1. e4 {[%emt 0:00:00]} c5 {[%emt 0:00:09]} 2. Nf3 {[%emt 0:00:14]} Nc6 {[%emt 0:01:09]} 3. Bb5 {[%emt 0:00:03]} g6 {[%emt 0:00:20]} 4. Bxc6 {[%emt 0:00:05]} bxc6 {[%emt 0:00:11]} 5. O-O {[%emt 0:00:07]} Bg7 {[%emt 0:00:26]} 6. Re1 {[%emt 0:00:58]} d6 {[%emt 0:02:28]} 7. e5 {[%emt 0:05:32] B31: Sicilian: 2...Nc6 3 Bb5 g6.} dxe5 {[%emt 0:12:08]} 8. Nxe5 {[%emt 0:03:35]} Qc7 {[%emt 0:00:43]} 9. Nc4 {[%emt 0:07:19] White is slightly better.} Nf6 {[%emt 0:02:52] [#] aiming for ...Ng4.} 10. Qf3 $146 {[%emt 0:01:02]} ({Predecessor:} 10. d3 O-O 11. Bd2 Ba6 12. Bc3 Bxc4 13. dxc4 Rfe8 14. Qf3 e5 15. Nd2 Nd7 16. Re2 {0-1 (63) Bogachev,S (2327)-Kudrjavich,D St Petersburg 2008}) 10... O-O {[%emt 0:02:56]} 11. d3 {[%emt 0:14:10]} Nd5 {[%emt 0:03:08] Against Bf4} 12. Bd2 {[%emt 0:01:22]} e5 {[%emt 0:03:49]} 13. Nc3 {[%emt 0:00:54]} Be6 {[%emt 0:07:55]} 14. Ne4 {[%emt 0:05:57]} Qe7 {[%emt 0:11:38]} 15. Qg3 {[%emt 0:01:22]} f6 {[%emt 0:02:33]} (15... Nb4 $11 16. Bxb4 (16. Nxe5 Nxc2 17. Bc3 Rac8 $17) 16... cxb4) 16. a3 $16 {[%emt 0:04:09]} Kh8 {[%emt 0:14:25]} 17. f3 {[%emt 0:02:14]} Nb6 {[%emt 0:05:39]} 18. b3 {[%emt 0:02:07]} Bg8 {[%emt 0:13:31]} 19. Qf2 {[%emt 0:03:32]} Nd7 {[%emt 0:00:26]} 20. Be3 {[%emt 0:09:37][%cal Bd2e3,Be3d4,Bd4c3,Bc3e5][%mdl 32] 0x0.001b680a0fd2dp-1022s more active pieces.} f5 {[%emt 0:00:40]} 21. Nxc5 {[%emt 0:03:49][%cal Oe3d4] Pair of Knights!} (21. Bg5 {keeps more tension.} Qf7 22. Nxc5 Nxc5 23. Qxc5 e4 24. fxe4 fxe4 25. Nd6) 21... Nb6 {[%emt 0:03:42] [#]} (21... e4 $16) 22. Bd4 $1 {[%emt 0:05:25][%cal Rc4e5][%mdl 512]} Nxc4 {[%emt 0:03:27]} (22... Bxc4 23. bxc4) 23. bxc4 {[%emt 0:01:08][%cal Od4e5] Threatens to win with Bxe5!} Qd6 {[%emt 0:01:53]} (23... Qc7 $142) 24. Bc3 $18 {[%emt 0:01:01]} g5 {[%emt 0:01:01]} 25. Rab1 {[%emt 0:03:54]} Rab8 {[%emt 0:01:33]} 26. Rxb8 {[%emt 0:01:37]} Rxb8 {[%emt 0:00:07]} 27. Nb3 {[%emt 0:00:38]} Rb7 {[%emt 0:02:45]} (27... Qe7 $142 28. Qc5 Qxc5+ 29. Nxc5 Re8) 28. Qe3 {[%emt 0:00:46]} Qxa3 {[%emt 0:01:11]} 29. Bxe5 {[%emt 0:03:02]} Qb4 {[%emt 0:00:47]} 30. Ra1 {[%emt 0:02:09]} f4 {[%emt 0:00:45]} 31. Qd4 {[%emt 0:01:23]} a5 {[%emt 0:00:47]} (31... Qe7 $142 32. Bxg7+ Qxg7 33. Qxg7+ Kxg7) 32. Nxa5 {[%emt 0:08:14]} c5 {[%emt 0:00:10]} 33. Qe4 {[%emt 0:03:17]} Ra7 {[%emt 0:00:36]} 34. Bxg7+ {[%emt 0:00:29]} Kxg7 {[%emt 0:00:05]} 35. Qe5+ {[%emt 0:06:49]} Kg6 {[%emt 0:01:29]} 36. Nb3 {[%emt 0:00:00]} Rxa1+ {[%emt 0:00:13]} 37. Qxa1 {[%emt 0:00:00] Weighted Error Value: White=0.10 (very precise) /Black=0.32} ({Weaker is} 37. Nxa1 Qb1+ 38. Kf2 h5 $18) 1-0

[Event "1st Sales Oliveira Masters 2022"]
[Site "Sales Oliveira"]
[Date "2022.06.09"]
[Round "4.1"]
[White "Fier, Alexandr"]
[Black "Coro, Lucas"]
[Result "1-0"]
[ECO "B45"]
[WhiteElo "2567"]
[BlackElo "2398"]
[Annotator "TA"]
[PlyCount "67"]
[EventDate "2022.05.30"]
[EventType "swiss"]
[EventCountry "BRA"]
[SourceTitle "playchess.com"]
[Source "ChessBase"]
[SourceQuality "1"]
[TimeControl "40/5400+30:1800+30"]

{[%evp 14,67,15,17,46,29,33,26,25,30,26,29,36,33,34,39,36,33,33,26,68,72,81,56,59,65,68,35,57,54,49,41,101,90,87,42,36,34,232,220,224,0,69,0,345,325,310,270,270,270,265,262,330,326,343,320]} 1. e4 {[%emt 0:00:02]} c5 {[%emt 0:00:13]} 2. Nf3 {[%emt 0:00:05]} e6 {[%emt 0:00:14]} 3. d4 {[%emt 0:00:04]} cxd4 {[%emt 0:00:07]} 4. Nxd4 {[%emt 0:00:02]} Nf6 {[%emt 0:00:12]} 5. Nc3 {[%emt 0:00:03]} Nc6 {[%emt 0:00:09]} 6. Nxc6 {[%emt 0:00:04]} bxc6 {[%emt 0:00:08]} 7. e5 {[%emt 0:00:01]} Nd5 {[%emt 0:00:09]} 8. Ne4 {[%emt 0:00:03]} c5 {[%emt 0:00:44] B45: Sicilian Four Knights.} 9. Be2 {[%emt 0:06:05]} Bb7 {[%emt 0:00:56]} 10. O-O {[%emt 0:00:06]} Qc7 {[%emt 0:00:22] White has an edge.} 11. Nd6+ {[%emt 0:00:05]} Bxd6 {[%emt 0:00:11]} 12. exd6 {[%emt 0:00:03]} Qc6 {[%emt 0:02:35]} (12... Qxd6 $2 13. c4 $18) 13. f3 {[%emt 0:00:29]} c4 {[%emt 0:01:03]} (13... Qxd6 $2 14. c4 $18) 14. Qd4 {[%emt 0:00:22][%csl LRc4,LRg7] Prevents Qc5.} O-O {[%emt 0:02:31]} 15. Bxc4 {[%emt 0:00:24]} Qxd6 {[%emt 0:00:11] 15...Qxd6 scores better than 15...Rfc8.} 16. Rd1 {[%emt 0:00:03] [#]} Rac8 $146 {[%emt 0:16:58]} ({Predecessor:} 16... Rfc8 17. b3 Qb6 18. Qxb6 Nxb6 19. Bd3 d5 20. a4 Nd7 21. a5 a6 22. Bb2 Nc5 {1-0 (86) Vachier Lagrave,M (2774)-Kovalenko,I (2674) Khanty-Mansiysk 2019}) 17. b3 {[%emt 0:00:14]} Qb6 {[%emt 0:04:26]} 18. Qxb6 {[%emt 0:00:27]} Nxb6 {[%emt 0:02:29][%cal Bd5b6,Bb6d7,Bd7c5][%mdl 32]} 19. Bd3 {[%emt 0:00:08]} d5 {[%emt 0:05:00]} 20. Bb2 {[%emt 0:03:52]} Nd7 {[%emt 0:02:48]} 21. Rac1 {[%emt 0:01:51]} Rfd8 {[%emt 0:03:52]} 22. c4 {[%emt 0:03:32]} Ba6 {[%emt 0:10:41] [#]} (22... dxc4 $14 23. Rxc4 (23. Bxc4 Nb6 $14) 23... Nb6 24. Rxc8 Rxc8) 23. cxd5 $1 $16 {[%emt 0:04:01] White is more active.} Rxc1 {[%emt 0:00:41]} 24. Bxc1 {[%emt 0:00:30]} Bxd3 {[%emt 0:00:30]} 25. Rxd3 {[%emt 0:00:30][%mdl 4096] Endgame And now dxe6 would win. KRB-KRN} Nc5 {[%emt 0:00:30]} (25... Ne5 $14 26. Rc3 exd5) 26. Rc3 $18 {[%emt 0:00:30]} Nd7 {[%emt 0:00:18]} (26... Rxd5 $2 27. Ba3 $18) 27. Rd3 $2 {[%emt 0:00:00] [#]} (27. d6 $18) 27... Nc5 $1 $14 {[%emt 0:03:04]} 28. Rc3 {[%emt 0:00:19]} ({Better is} 28. Rd2 $14) 28... Nb7 $2 {[%emt 0:11:09][%mdl 8192]} (28... Rxd5 $2 29. Ba3 $18) (28... Nd7 $1 $11) 29. Rc7 $18 {[%emt 0:01:21] White has a decisive advantage.} Nd6 {[%emt 0:00:11]} 30. dxe6 {[%emt 0:01:18]} fxe6 {[%emt 0:00:10]} 31. Bg5 {[%emt 0:00:14]} ({Resist} 31. Rxa7 $6 Nb5 32. Rb7 Rd1+ 33. Kf2 Rxc1 $16) 31... Ra8 {[%emt 0:01:20]} 32. Rc6 {[%emt 0:00:06]} Nf7 {[%emt 0:00:55]} 33. Be3 {[%emt 0:00:04]} e5 {[%emt 0:04:04]} 34. Ra6 {[%emt 0:00:07] Weighted Error Value: White=0.16 (very precise) /Black=0.36} 1-0